Workbook

Sheet Macro
A1: Monto del crédito: | B1: $75,000.00 | D1: Número de pago | E1: Pago de Interés | F1: Pago de Capital | G1: Saldo
A2: Tasa de interés (anual): | B2: 7% | D2: 1 | E2: =IPMT($B$2/12,D2,$B$3,-$B$1) -> $406.25 | F2: =PPMT($B$2/12,D2,$B$3,-$B$1) -> $137.01 | G2: =$B$1-SUM($F$2:F2) -> $74,862.99
A3: Número de pagos (mensuales): | B3: 255 | D3: 2 | E3: =IPMT($B$2/12,D3,$B$3,-$B$1) -> $405.51 | F3: =PPMT($B$2/12,D3,$B$3,-$B$1) -> $137.75 | G3: =$B$1-SUM($F$2:F3) -> $74,725.23
A4: Pago (mensual): | B4: =PMT(B2/12,B3,-B1) -> $543.26 | D4: 3 | E4: =IPMT($B$2/12,D4,$B$3,-$B$1) -> $404.76 | F4: =PPMT($B$2/12,D4,$B$3,-$B$1) -> $138.50 | G4: =$B$1-SUM($F$2:F4) -> $74,586.73
D5: 4 | E5: =IPMT($B$2/12,D5,$B$3,-$B$1) -> $404.01 | F5: =PPMT($B$2/12,D5,$B$3,-$B$1) -> $139.25 | G5: =$B$1-SUM($F$2:F5) -> $74,447.48
D6: 5 | E6: =IPMT($B$2/12,D6,$B$3,-$B$1) -> $403.26 | F6: =PPMT($B$2/12,D6,$B$3,-$B$1) -> $140.00 | G6: =$B$1-SUM($F$2:F6) -> $74,307.48
D7: 6 | E7: =IPMT($B$2/12,D7,$B$3,-$B$1) -> $402.50 | F7: =PPMT($B$2/12,D7,$B$3,-$B$1) -> $140.76 | G7: =$B$1-SUM($F$2:F7) -> $74,166.71
D8: 7 | E8: =IPMT($B$2/12,D8,$B$3,-$B$1) -> $401.74 | F8: =PPMT($B$2/12,D8,$B$3,-$B$1) -> $141.53 | G8: =$B$1-SUM($F$2:F8) -> $74,025.19
D9: 8 | E9: =IPMT($B$2/12,D9,$B$3,-$B$1) -> $400.97 | F9: =PPMT($B$2/12,D9,$B$3,-$B$1) -> $142.29 | G9: =$B$1-SUM($F$2:F9) -> $73,882.90
D10: 9 | E10: =IPMT($B$2/12,D10,$B$3,-$B$1) -> $400.20 | F10: =PPMT($B$2/12,D10,$B$3,-$B$1) -> $143.06 | G10: =$B$1-SUM($F$2:F10) -> $73,739.83
D11: 10 | E11: =IPMT($B$2/12,D11,$B$3,-$B$1) -> $399.42 | F11: =PPMT($B$2/12,D11,$B$3,-$B$1) -> $143.84 | G11: =$B$1-SUM($F$2:F11) -> $73,596.00
D12: 11 | E12: =IPMT($B$2/12,D12,$B$3,-$B$1) -> $398.64 | F12: =PPMT($B$2/12,D12,$B$3,-$B$1) -> $144.62 | G12: =$B$1-SUM($F$2:F12) -> $73,451.38
D13: 12 | E13: =IPMT($B$2/12,D13,$B$3,-$B$1) -> $397.86 | F13: =PPMT($B$2/12,D13,$B$3,-$B$1) -> $145.40 | G13: =$B$1-SUM($F$2:F13) -> $73,305.98
D14: 13 | E14: =IPMT($B$2/12,D14,$B$3,-$B$1) -> $397.07 | F14: =PPMT($B$2/12,D14,$B$3,-$B$1) -> $146.19 | G14: =$B$1-SUM($F$2:F14) -> $73,159.79
D15: 14 | E15: =IPMT($B$2/12,D15,$B$3,-$B$1) -> $396.28 | F15: =PPMT($B$2/12,D15,$B$3,-$B$1) -> $146.98 | G15: =$B$1-SUM($F$2:F15) -> $73,012.81
D16: 15 | E16: =IPMT($B$2/12,D16,$B$3,-$B$1) -> $395.49 | F16: =PPMT($B$2/12,D16,$B$3,-$B$1) -> $147.78 | G16: =$B$1-SUM($F$2:F16) -> $72,865.03
D17: 16 | E17: =IPMT($B$2/12,D17,$B$3,-$B$1) -> $394.69 | F17: =PPMT($B$2/12,D17,$B$3,-$B$1) -> $148.58 | G17: =$B$1-SUM($F$2:F17) -> $72,716.46
D18: 17 | E18: =IPMT($B$2/12,D18,$B$3,-$B$1) -> $393.88 | F18: =PPMT($B$2/12,D18,$B$3,-$B$1) -> $149.38 | G18: =$B$1-SUM($F$2:F18) -> $72,567.08
D19: 18 | E19: =IPMT($B$2/12,D19,$B$3,-$B$1) -> $393.07 | F19: =PPMT($B$2/12,D19,$B$3,-$B$1) -> $150.19 | G19: =$B$1-SUM($F$2:F19) -> $72,416.89
D20: 19 | E20: =IPMT($B$2/12,D20,$B$3,-$B$1) -> $392.26 | F20: =PPMT($B$2/12,D20,$B$3,-$B$1) -> $151.00 | G20: =$B$1-SUM($F$2:F20) -> $72,265.88
D21: 20 | E21: =IPMT($B$2/12,D21,$B$3,-$B$1) -> $391.44 | F21: =PPMT($B$2/12,D21,$B$3,-$B$1) -> $151.82 | G21: =$B$1-SUM($F$2:F21) -> $72,114.06
D22: 21 | E22: =IPMT($B$2/12,D22,$B$3,-$B$1) -> $390.62 | F22: =PPMT($B$2/12,D22,$B$3,-$B$1) -> $152.64 | G22: =$B$1-SUM($F$2:F22) -> $71,961.41
D23: 22 | E23: =IPMT($B$2/12,D23,$B$3,-$B$1) -> $389.79 | F23: =PPMT($B$2/12,D23,$B$3,-$B$1) -> $153.47 | G23: =$B$1-SUM($F$2:F23) -> $71,807.94
D24: 23 | E24: =IPMT($B$2/12,D24,$B$3,-$B$1) -> $388.96 | F24: =PPMT($B$2/12,D24,$B$3,-$B$1) -> $154.30 | G24: =$B$1-SUM($F$2:F24) -> $71,653.64
D25: 24 | E25: =IPMT($B$2/12,D25,$B$3,-$B$1) -> $388.12 | F25: =PPMT($B$2/12,D25,$B$3,-$B$1) -> $155.14 | G25: =$B$1-SUM($F$2:F25) -> $71,498.50
D26: 25 | E26: =IPMT($B$2/12,D26,$B$3,-$B$1) -> $387.28 | F26: =PPMT($B$2/12,D26,$B$3,-$B$1) -> $155.98 | G26: =$B$1-SUM($F$2:F26) -> $71,342.52
D27: 26 | E27: =IPMT($B$2/12,D27,$B$3,-$B$1) -> $386.44 | F27: =PPMT($B$2/12,D27,$B$3,-$B$1) -> $156.82 | G27: =$B$1-SUM($F$2:F27) -> $71,185.70
D28: 27 | E28: =IPMT($B$2/12,D28,$B$3,-$B$1) -> $385.59 | F28: =PPMT($B$2/12,D28,$B$3,-$B$1) -> $157.67 | G28: =$B$1-SUM($F$2:F28) -> $71,028.03
D29: 28 | E29: =IPMT($B$2/12,D29,$B$3,-$B$1) -> $384.74 | F29: =PPMT($B$2/12,D29,$B$3,-$B$1) -> $158.53 | G29: =$B$1-SUM($F$2:F29) -> $70,869.50
D30: 29 | E30: =IPMT($B$2/12,D30,$B$3,-$B$1) -> $383.88 | F30: =PPMT($B$2/12,D30,$B$3,-$B$1) -> $159.39 | G30: =$B$1-SUM($F$2:F30) -> $70,710.12
D31: 30 | E31: =IPMT($B$2/12,D31,$B$3,-$B$1) -> $383.01 | F31: =PPMT($B$2/12,D31,$B$3,-$B$1) -> $160.25 | G31: =$B$1-SUM($F$2:F31) -> $70,549.87
D32: 31 | E32: =IPMT($B$2/12,D32,$B$3,-$B$1) -> $382.15 | F32: =PPMT($B$2/12,D32,$B$3,-$B$1) -> $161.12 | G32: =$B$1-SUM($F$2:F32) -> $70,388.75
D33: 32 | E33: =IPMT($B$2/12,D33,$B$3,-$B$1) -> $381.27 | F33: =PPMT($B$2/12,D33,$B$3,-$B$1) -> $161.99 | G33: =$B$1-SUM($F$2:F33) -> $70,226.76
D34: 33 | E34: =IPMT($B$2/12,D34,$B$3,-$B$1) -> $380.39 | F34: =PPMT($B$2/12,D34,$B$3,-$B$1) -> $162.87 | G34: =$B$1-SUM($F$2:F34) -> $70,063.89
D35: 34 | E35: =IPMT($B$2/12,D35,$B$3,-$B$1) -> $379.51 | F35: =PPMT($B$2/12,D35,$B$3,-$B$1) -> $163.75 | G35: =$B$1-SUM($F$2:F35) -> $69,900.14
D36: 35 | E36: =IPMT($B$2/12,D36,$B$3,-$B$1) -> $378.63 | F36: =PPMT($B$2/12,D36,$B$3,-$B$1) -> $164.64 | G36: =$B$1-SUM($F$2:F36) -> $69,735.51
D37: 36 | E37: =IPMT($B$2/12,D37,$B$3,-$B$1) -> $377.73 | F37: =PPMT($B$2/12,D37,$B$3,-$B$1) -> $165.53 | G37: =$B$1-SUM($F$2:F37) -> $69,569.98
D38: 37 | E38: =IPMT($B$2/12,D38,$B$3,-$B$1) -> $376.84 | F38: =PPMT($B$2/12,D38,$B$3,-$B$1) -> $166.42 | G38: =$B$1-SUM($F$2:F38) -> $69,403.55
D39: 38 | E39: =IPMT($B$2/12,D39,$B$3,-$B$1) -> $375.94 | F39: =PPMT($B$2/12,D39,$B$3,-$B$1) -> $167.33 | G39: =$B$1-SUM($F$2:F39) -> $69,236.23
D40: 39 | E40: =IPMT($B$2/12,D40,$B$3,-$B$1) -> $375.03 | F40: =PPMT($B$2/12,D40,$B$3,-$B$1) -> $168.23 | G40: =$B$1-SUM($F$2:F40) -> $69,068.00
D41: 40 | E41: =IPMT($B$2/12,D41,$B$3,-$B$1) -> $374.12 | F41: =PPMT($B$2/12,D41,$B$3,-$B$1) -> $169.14 | G41: =$B$1-SUM($F$2:F41) -> $68,898.85
D42: 41 | E42: =IPMT($B$2/12,D42,$B$3,-$B$1) -> $373.20 | F42: =PPMT($B$2/12,D42,$B$3,-$B$1) -> $170.06 | G42: =$B$1-SUM($F$2:F42) -> $68,728.79
D43: 42 | E43: =IPMT($B$2/12,D43,$B$3,-$B$1) -> $372.28 | F43: =PPMT($B$2/12,D43,$B$3,-$B$1) -> $170.98 | G43: =$B$1-SUM($F$2:F43) -> $68,557.81
D44: 43 | E44: =IPMT($B$2/12,D44,$B$3,-$B$1) -> $371.35 | F44: =PPMT($B$2/12,D44,$B$3,-$B$1) -> $171.91 | G44: =$B$1-SUM($F$2:F44) -> $68,385.90
D45: 44 | E45: =IPMT($B$2/12,D45,$B$3,-$B$1) -> $370.42 | F45: =PPMT($B$2/12,D45,$B$3,-$B$1) -> $172.84 | G45: =$B$1-SUM($F$2:F45) -> $68,213.06
D46: 45 | E46: =IPMT($B$2/12,D46,$B$3,-$B$1) -> $369.49 | F46: =PPMT($B$2/12,D46,$B$3,-$B$1) -> $173.77 | G46: =$B$1-SUM($F$2:F46) -> $68,039.29
D47: 46 | E47: =IPMT($B$2/12,D47,$B$3,-$B$1) -> $368.55 | F47: =PPMT($B$2/12,D47,$B$3,-$B$1) -> $174.72 | G47: =$B$1-SUM($F$2:F47) -> $67,864.57
D48: 47 | E48: =IPMT($B$2/12,D48,$B$3,-$B$1) -> $367.60 | F48: =PPMT($B$2/12,D48,$B$3,-$B$1) -> $175.66 | G48: =$B$1-SUM($F$2:F48) -> $67,688.91
D49: 48 | E49: =IPMT($B$2/12,D49,$B$3,-$B$1) -> $366.65 | F49: =PPMT($B$2/12,D49,$B$3,-$B$1) -> $176.61 | G49: =$B$1-SUM($F$2:F49) -> $67,512.30
D50: 49 | E50: =IPMT($B$2/12,D50,$B$3,-$B$1) -> $365.69 | F50: =PPMT($B$2/12,D50,$B$3,-$B$1) -> $177.57 | G50: =$B$1-SUM($F$2:F50) -> $67,334.73
D51: 50 | E51: =IPMT($B$2/12,D51,$B$3,-$B$1) -> $364.73 | F51: =PPMT($B$2/12,D51,$B$3,-$B$1) -> $178.53 | G51: =$B$1-SUM($F$2:F51) -> $67,156.20
D52: 51 | E52: =IPMT($B$2/12,D52,$B$3,-$B$1) -> $363.76 | F52: =PPMT($B$2/12,D52,$B$3,-$B$1) -> $179.50 | G52: =$B$1-SUM($F$2:F52) -> $66,976.70
D53: 52 | E53: =IPMT($B$2/12,D53,$B$3,-$B$1) -> $362.79 | F53: =PPMT($B$2/12,D53,$B$3,-$B$1) -> $180.47 | G53: =$B$1-SUM($F$2:F53) -> $66,796.22
D54: 53 | E54: =IPMT($B$2/12,D54,$B$3,-$B$1) -> $361.81 | F54: =PPMT($B$2/12,D54,$B$3,-$B$1) -> $181.45 | G54: =$B$1-SUM($F$2:F54) -> $66,614.77
D55: 54 | E55: =IPMT($B$2/12,D55,$B$3,-$B$1) -> $360.83 | F55: =PPMT($B$2/12,D55,$B$3,-$B$1) -> $182.43 | G55: =$B$1-SUM($F$2:F55) -> $66,432.34
D56: 55 | E56: =IPMT($B$2/12,D56,$B$3,-$B$1) -> $359.84 | F56: =PPMT($B$2/12,D56,$B$3,-$B$1) -> $183.42 | G56: =$B$1-SUM($F$2:F56) -> $66,248.92
D57: 56 | E57: =IPMT($B$2/12,D57,$B$3,-$B$1) -> $358.85 | F57: =PPMT($B$2/12,D57,$B$3,-$B$1) -> $184.41 | G57: =$B$1-SUM($F$2:F57) -> $66,064.51
D58: 57 | E58: =IPMT($B$2/12,D58,$B$3,-$B$1) -> $357.85 | F58: =PPMT($B$2/12,D58,$B$3,-$B$1) -> $185.41 | G58: =$B$1-SUM($F$2:F58) -> $65,879.10
D59: 58 | E59: =IPMT($B$2/12,D59,$B$3,-$B$1) -> $356.85 | F59: =PPMT($B$2/12,D59,$B$3,-$B$1) -> $186.42 | G59: =$B$1-SUM($F$2:F59) -> $65,692.68
D60: 59 | E60: =IPMT($B$2/12,D60,$B$3,-$B$1) -> $355.84 | F60: =PPMT($B$2/12,D60,$B$3,-$B$1) -> $187.43 | G60: =$B$1-SUM($F$2:F60) -> $65,505.25
D61: 60 | E61: =IPMT($B$2/12,D61,$B$3,-$B$1) -> $354.82 | F61: =PPMT($B$2/12,D61,$B$3,-$B$1) -> $188.44 | G61: =$B$1-SUM($F$2:F61) -> $65,316.81
D62: 61 | E62: =IPMT($B$2/12,D62,$B$3,-$B$1) -> $353.80 | F62: =PPMT($B$2/12,D62,$B$3,-$B$1) -> $189.46 | G62: =$B$1-SUM($F$2:F62) -> $65,127.35
D63: 62 | E63: =IPMT($B$2/12,D63,$B$3,-$B$1) -> $352.77 | F63: =PPMT($B$2/12,D63,$B$3,-$B$1) -> $190.49 | G63: =$B$1-SUM($F$2:F63) -> $64,936.86
D64: 63 | E64: =IPMT($B$2/12,D64,$B$3,-$B$1) -> $351.74 | F64: =PPMT($B$2/12,D64,$B$3,-$B$1) -> $191.52 | G64: =$B$1-SUM($F$2:F64) -> $64,745.34
D65: 64 | E65: =IPMT($B$2/12,D65,$B$3,-$B$1) -> $350.70 | F65: =PPMT($B$2/12,D65,$B$3,-$B$1) -> $192.56 | G65: =$B$1-SUM($F$2:F65) -> $64,552.78
D66: 65 | E66: =IPMT($B$2/12,D66,$B$3,-$B$1) -> $349.66 | F66: =PPMT($B$2/12,D66,$B$3,-$B$1) -> $193.60 | G66: =$B$1-SUM($F$2:F66) -> $64,359.18
D67: 66 | E67: =IPMT($B$2/12,D67,$B$3,-$B$1) -> $348.61 | F67: =PPMT($B$2/12,D67,$B$3,-$B$1) -> $194.65 | G67: =$B$1-SUM($F$2:F67) -> $64,164.53
D68: 67 | E68: =IPMT($B$2/12,D68,$B$3,-$B$1) -> $347.56 | F68: =PPMT($B$2/12,D68,$B$3,-$B$1) -> $195.70 | G68: =$B$1-SUM($F$2:F68) -> $63,968.82
D69: 68 | E69: =IPMT($B$2/12,D69,$B$3,-$B$1) -> $346.50 | F69: =PPMT($B$2/12,D69,$B$3,-$B$1) -> $196.76 | G69: =$B$1-SUM($F$2:F69) -> $63,772.06
D70: 69 | E70: =IPMT($B$2/12,D70,$B$3,-$B$1) -> $345.43 | F70: =PPMT($B$2/12,D70,$B$3,-$B$1) -> $197.83 | G70: =$B$1-SUM($F$2:F70) -> $63,574.23
D71: 70 | E71: =IPMT($B$2/12,D71,$B$3,-$B$1) -> $344.36 | F71: =PPMT($B$2/12,D71,$B$3,-$B$1) -> $198.90 | G71: =$B$1-SUM($F$2:F71) -> $63,375.33
D72: 71 | E72: =IPMT($B$2/12,D72,$B$3,-$B$1) -> $343.28 | F72: =PPMT($B$2/12,D72,$B$3,-$B$1) -> $199.98 | G72: =$B$1-SUM($F$2:F72) -> $63,175.35
D73: 72 | E73: =IPMT($B$2/12,D73,$B$3,-$B$1) -> $342.20 | F73: =PPMT($B$2/12,D73,$B$3,-$B$1) -> $201.06 | G73: =$B$1-SUM($F$2:F73) -> $62,974.29
D74: 73 | E74: =IPMT($B$2/12,D74,$B$3,-$B$1) -> $341.11 | F74: =PPMT($B$2/12,D74,$B$3,-$B$1) -> $202.15 | G74: =$B$1-SUM($F$2:F74) -> $62,772.14
D75: 74 | E75: =IPMT($B$2/12,D75,$B$3,-$B$1) -> $340.02 | F75: =PPMT($B$2/12,D75,$B$3,-$B$1) -> $203.25 | G75: =$B$1-SUM($F$2:F75) -> $62,568.89
D76: 75 | E76: =IPMT($B$2/12,D76,$B$3,-$B$1) -> $338.91 | F76: =PPMT($B$2/12,D76,$B$3,-$B$1) -> $204.35 | G76: =$B$1-SUM($F$2:F76) -> $62,364.54
D77: 76 | E77: =IPMT($B$2/12,D77,$B$3,-$B$1) -> $337.81 | F77: =PPMT($B$2/12,D77,$B$3,-$B$1) -> $205.45 | G77: =$B$1-SUM($F$2:F77) -> $62,159.09
D78: 77 | E78: =IPMT($B$2/12,D78,$B$3,-$B$1) -> $336.70 | F78: =PPMT($B$2/12,D78,$B$3,-$B$1) -> $206.57 | G78: =$B$1-SUM($F$2:F78) -> $61,952.52
D79: 78 | E79: =IPMT($B$2/12,D79,$B$3,-$B$1) -> $335.58 | F79: =PPMT($B$2/12,D79,$B$3,-$B$1) -> $207.69 | G79: =$B$1-SUM($F$2:F79) -> $61,744.83
D80: 79 | E80: =IPMT($B$2/12,D80,$B$3,-$B$1) -> $334.45 | F80: =PPMT($B$2/12,D80,$B$3,-$B$1) -> $208.81 | G80: =$B$1-SUM($F$2:F80) -> $61,536.02
D81: 80 | E81: =IPMT($B$2/12,D81,$B$3,-$B$1) -> $333.32 | F81: =PPMT($B$2/12,D81,$B$3,-$B$1) -> $209.94 | G81: =$B$1-SUM($F$2:F81) -> $61,326.08
D82: 81 | E82: =IPMT($B$2/12,D82,$B$3,-$B$1) -> $332.18 | F82: =PPMT($B$2/12,D82,$B$3,-$B$1) -> $211.08 | G82: =$B$1-SUM($F$2:F82) -> $61,115.00
D83: 82 | E83: =IPMT($B$2/12,D83,$B$3,-$B$1) -> $331.04 | F83: =PPMT($B$2/12,D83,$B$3,-$B$1) -> $212.22 | G83: =$B$1-SUM($F$2:F83) -> $60,902.78
D84: 83 | E84: =IPMT($B$2/12,D84,$B$3,-$B$1) -> $329.89 | F84: =PPMT($B$2/12,D84,$B$3,-$B$1) -> $213.37 | G84: =$B$1-SUM($F$2:F84) -> $60,689.41
D85: 84 | E85: =IPMT($B$2/12,D85,$B$3,-$B$1) -> $328.73 | F85: =PPMT($B$2/12,D85,$B$3,-$B$1) -> $214.53 | G85: =$B$1-SUM($F$2:F85) -> $60,474.88
D86: 85 | E86: =IPMT($B$2/12,D86,$B$3,-$B$1) -> $327.57 | F86: =PPMT($B$2/12,D86,$B$3,-$B$1) -> $215.69 | G86: =$B$1-SUM($F$2:F86) -> $60,259.19
D87: 86 | E87: =IPMT($B$2/12,D87,$B$3,-$B$1) -> $326.40 | F87: =PPMT($B$2/12,D87,$B$3,-$B$1) -> $216.86 | G87: =$B$1-SUM($F$2:F87) -> $60,042.33
D88: 87 | E88: =IPMT($B$2/12,D88,$B$3,-$B$1) -> $325.23 | F88: =PPMT($B$2/12,D88,$B$3,-$B$1) -> $218.03 | G88: =$B$1-SUM($F$2:F88) -> $59,824.30
D89: 88 | E89: =IPMT($B$2/12,D89,$B$3,-$B$1) -> $324.05 | F89: =PPMT($B$2/12,D89,$B$3,-$B$1) -> $219.21 | G89: =$B$1-SUM($F$2:F89) -> $59,605.09
D90: 89 | E90: =IPMT($B$2/12,D90,$B$3,-$B$1) -> $322.86 | F90: =PPMT($B$2/12,D90,$B$3,-$B$1) -> $220.40 | G90: =$B$1-SUM($F$2:F90) -> $59,384.68
D91: 90 | E91: =IPMT($B$2/12,D91,$B$3,-$B$1) -> $321.67 | F91: =PPMT($B$2/12,D91,$B$3,-$B$1) -> $221.60 | G91: =$B$1-SUM($F$2:F91) -> $59,163.09
D92: 91 | E92: =IPMT($B$2/12,D92,$B$3,-$B$1) -> $320.47 | F92: =PPMT($B$2/12,D92,$B$3,-$B$1) -> $222.80 | G92: =$B$1-SUM($F$2:F92) -> $58,940.29
D93: 92 | E93: =IPMT($B$2/12,D93,$B$3,-$B$1) -> $319.26 | F93: =PPMT($B$2/12,D93,$B$3,-$B$1) -> $224.00 | G93: =$B$1-SUM($F$2:F93) -> $58,716.29
D94: 93 | E94: =IPMT($B$2/12,D94,$B$3,-$B$1) -> $318.05 | F94: =PPMT($B$2/12,D94,$B$3,-$B$1) -> $225.22 | G94: =$B$1-SUM($F$2:F94) -> $58,491.08
D95: 94 | E95: =IPMT($B$2/12,D95,$B$3,-$B$1) -> $316.83 | F95: =PPMT($B$2/12,D95,$B$3,-$B$1) -> $226.44 | G95: =$B$1-SUM($F$2:F95) -> $58,264.64
D96: 95 | E96: =IPMT($B$2/12,D96,$B$3,-$B$1) -> $315.60 | F96: =PPMT($B$2/12,D96,$B$3,-$B$1) -> $227.66 | G96: =$B$1-SUM($F$2:F96) -> $58,036.98
D97: 96 | E97: =IPMT($B$2/12,D97,$B$3,-$B$1) -> $314.37 | F97: =PPMT($B$2/12,D97,$B$3,-$B$1) -> $228.90 | G97: =$B$1-SUM($F$2:F97) -> $57,808.08
D98: 97 | E98: =IPMT($B$2/12,D98,$B$3,-$B$1) -> $313.13 | F98: =PPMT($B$2/12,D98,$B$3,-$B$1) -> $230.13 | G98: =$B$1-SUM($F$2:F98) -> $57,577.95
D99: 98 | E99: =IPMT($B$2/12,D99,$B$3,-$B$1) -> $311.88 | F99: =PPMT($B$2/12,D99,$B$3,-$B$1) -> $231.38 | G99: =$B$1-SUM($F$2:F99) -> $57,346.57
D100: 99 | E100: =IPMT($B$2/12,D100,$B$3,-$B$1) -> $310.63 | F100: =PPMT($B$2/12,D100,$B$3,-$B$1) -> $232.63 | G100: =$B$1-SUM($F$2:F100) -> $57,113.93
D101: 100 | E101: =IPMT($B$2/12,D101,$B$3,-$B$1) -> $309.37 | F101: =PPMT($B$2/12,D101,$B$3,-$B$1) -> $233.89 | G101: =$B$1-SUM($F$2:F101) -> $56,880.04
D102: 101 | E102: =IPMT($B$2/12,D102,$B$3,-$B$1) -> $308.10 | F102: =PPMT($B$2/12,D102,$B$3,-$B$1) -> $235.16 | G102: =$B$1-SUM($F$2:F102) -> $56,644.87
D103: 102 | E103: =IPMT($B$2/12,D103,$B$3,-$B$1) -> $306.83 | F103: =PPMT($B$2/12,D103,$B$3,-$B$1) -> $236.44 | G103: =$B$1-SUM($F$2:F103) -> $56,408.44
D104: 103 | E104: =IPMT($B$2/12,D104,$B$3,-$B$1) -> $305.55 | F104: =PPMT($B$2/12,D104,$B$3,-$B$1) -> $237.72 | G104: =$B$1-SUM($F$2:F104) -> $56,170.72
D105: 104 | E105: =IPMT($B$2/12,D105,$B$3,-$B$1) -> $304.26 | F105: =PPMT($B$2/12,D105,$B$3,-$B$1) -> $239.00 | G105: =$B$1-SUM($F$2:F105) -> $55,931.72
D106: 105 | E106: =IPMT($B$2/12,D106,$B$3,-$B$1) -> $302.96 | F106: =PPMT($B$2/12,D106,$B$3,-$B$1) -> $240.30 | G106: =$B$1-SUM($F$2:F106) -> $55,691.42
D107: 106 | E107: =IPMT($B$2/12,D107,$B$3,-$B$1) -> $301.66 | F107: =PPMT($B$2/12,D107,$B$3,-$B$1) -> $241.60 | G107: =$B$1-SUM($F$2:F107) -> $55,449.82
D108: 107 | E108: =IPMT($B$2/12,D108,$B$3,-$B$1) -> $300.35 | F108: =PPMT($B$2/12,D108,$B$3,-$B$1) -> $242.91 | G108: =$B$1-SUM($F$2:F108) -> $55,206.91
D109: 108 | E109: =IPMT($B$2/12,D109,$B$3,-$B$1) -> $299.04 | F109: =PPMT($B$2/12,D109,$B$3,-$B$1) -> $244.22 | G109: =$B$1-SUM($F$2:F109) -> $54,962.69
D110: 109 | E110: =IPMT($B$2/12,D110,$B$3,-$B$1) -> $297.71 | F110: =PPMT($B$2/12,D110,$B$3,-$B$1) -> $245.55 | G110: =$B$1-SUM($F$2:F110) -> $54,717.14
D111: 110 | E111: =IPMT($B$2/12,D111,$B$3,-$B$1) -> $296.38 | F111: =PPMT($B$2/12,D111,$B$3,-$B$1) -> $246.88 | G111: =$B$1-SUM($F$2:F111) -> $54,470.26
D112: 111 | E112: =IPMT($B$2/12,D112,$B$3,-$B$1) -> $295.05 | F112: =PPMT($B$2/12,D112,$B$3,-$B$1) -> $248.21 | G112: =$B$1-SUM($F$2:F112) -> $54,222.05
D113: 112 | E113: =IPMT($B$2/12,D113,$B$3,-$B$1) -> $293.70 | F113: =PPMT($B$2/12,D113,$B$3,-$B$1) -> $249.56 | G113: =$B$1-SUM($F$2:F113) -> $53,972.49
D114: 113 | E114: =IPMT($B$2/12,D114,$B$3,-$B$1) -> $292.35 | F114: =PPMT($B$2/12,D114,$B$3,-$B$1) -> $250.91 | G114: =$B$1-SUM($F$2:F114) -> $53,721.58
D115: 114 | E115: =IPMT($B$2/12,D115,$B$3,-$B$1) -> $290.99 | F115: =PPMT($B$2/12,D115,$B$3,-$B$1) -> $252.27 | G115: =$B$1-SUM($F$2:F115) -> $53,469.31
D116: 115 | E116: =IPMT($B$2/12,D116,$B$3,-$B$1) -> $289.63 | F116: =PPMT($B$2/12,D116,$B$3,-$B$1) -> $253.64 | G116: =$B$1-SUM($F$2:F116) -> $53,215.67
D117: 116 | E117: =IPMT($B$2/12,D117,$B$3,-$B$1) -> $288.25 | F117: =PPMT($B$2/12,D117,$B$3,-$B$1) -> $255.01 | G117: =$B$1-SUM($F$2:F117) -> $52,960.66
D118: 117 | E118: =IPMT($B$2/12,D118,$B$3,-$B$1) -> $286.87 | F118: =PPMT($B$2/12,D118,$B$3,-$B$1) -> $256.39 | G118: =$B$1-SUM($F$2:F118) -> $52,704.27
D119: 118 | E119: =IPMT($B$2/12,D119,$B$3,-$B$1) -> $285.48 | F119: =PPMT($B$2/12,D119,$B$3,-$B$1) -> $257.78 | G119: =$B$1-SUM($F$2:F119) -> $52,446.49
D120: 119 | E120: =IPMT($B$2/12,D120,$B$3,-$B$1) -> $284.09 | F120: =PPMT($B$2/12,D120,$B$3,-$B$1) -> $259.18 | G120: =$B$1-SUM($F$2:F120) -> $52,187.31
D121: 120 | E121: =IPMT($B$2/12,D121,$B$3,-$B$1) -> $282.68 | F121: =PPMT($B$2/12,D121,$B$3,-$B$1) -> $260.58 | G121: =$B$1-SUM($F$2:F121) -> $51,926.73
D122: 121 | E122: =IPMT($B$2/12,D122,$B$3,-$B$1) -> $281.27 | F122: =PPMT($B$2/12,D122,$B$3,-$B$1) -> $261.99 | G122: =$B$1-SUM($F$2:F122) -> $51,664.74
D123: 122 | E123: =IPMT($B$2/12,D123,$B$3,-$B$1) -> $279.85 | F123: =PPMT($B$2/12,D123,$B$3,-$B$1) -> $263.41 | G123: =$B$1-SUM($F$2:F123) -> $51,401.32
D124: 123 | E124: =IPMT($B$2/12,D124,$B$3,-$B$1) -> $278.42 | F124: =PPMT($B$2/12,D124,$B$3,-$B$1) -> $264.84 | G124: =$B$1-SUM($F$2:F124) -> $51,136.49
D125: 124 | E125: =IPMT($B$2/12,D125,$B$3,-$B$1) -> $276.99 | F125: =PPMT($B$2/12,D125,$B$3,-$B$1) -> $266.27 | G125: =$B$1-SUM($F$2:F125) -> $50,870.21
D126: 125 | E126: =IPMT($B$2/12,D126,$B$3,-$B$1) -> $275.55 | F126: =PPMT($B$2/12,D126,$B$3,-$B$1) -> $267.72 | G126: =$B$1-SUM($F$2:F126) -> $50,602.50
D127: 126 | E127: =IPMT($B$2/12,D127,$B$3,-$B$1) -> $274.10 | F127: =PPMT($B$2/12,D127,$B$3,-$B$1) -> $269.17 | G127: =$B$1-SUM($F$2:F127) -> $50,333.33
D128: 127 | E128: =IPMT($B$2/12,D128,$B$3,-$B$1) -> $272.64 | F128: =PPMT($B$2/12,D128,$B$3,-$B$1) -> $270.62 | G128: =$B$1-SUM($F$2:F128) -> $50,062.71
D129: 128 | E129: =IPMT($B$2/12,D129,$B$3,-$B$1) -> $271.17 | F129: =PPMT($B$2/12,D129,$B$3,-$B$1) -> $272.09 | G129: =$B$1-SUM($F$2:F129) -> $49,790.62
D130: 129 | E130: =IPMT($B$2/12,D130,$B$3,-$B$1) -> $269.70 | F130: =PPMT($B$2/12,D130,$B$3,-$B$1) -> $273.56 | G130: =$B$1-SUM($F$2:F130) -> $49,517.06
D131: 130 | E131: =IPMT($B$2/12,D131,$B$3,-$B$1) -> $268.22 | F131: =PPMT($B$2/12,D131,$B$3,-$B$1) -> $275.04 | G131: =$B$1-SUM($F$2:F131) -> $49,242.01
D132: 131 | E132: =IPMT($B$2/12,D132,$B$3,-$B$1) -> $266.73 | F132: =PPMT($B$2/12,D132,$B$3,-$B$1) -> $276.53 | G132: =$B$1-SUM($F$2:F132) -> $48,965.48
D133: 132 | E133: =IPMT($B$2/12,D133,$B$3,-$B$1) -> $265.23 | F133: =PPMT($B$2/12,D133,$B$3,-$B$1) -> $278.03 | G133: =$B$1-SUM($F$2:F133) -> $48,687.45
D134: 133 | E134: =IPMT($B$2/12,D134,$B$3,-$B$1) -> $263.72 | F134: =PPMT($B$2/12,D134,$B$3,-$B$1) -> $279.54 | G134: =$B$1-SUM($F$2:F134) -> $48,407.91
D135: 134 | E135: =IPMT($B$2/12,D135,$B$3,-$B$1) -> $262.21 | F135: =PPMT($B$2/12,D135,$B$3,-$B$1) -> $281.05 | G135: =$B$1-SUM($F$2:F135) -> $48,126.85
D136: 135 | E136: =IPMT($B$2/12,D136,$B$3,-$B$1) -> $260.69 | F136: =PPMT($B$2/12,D136,$B$3,-$B$1) -> $282.57 | G136: =$B$1-SUM($F$2:F136) -> $47,844.28
D137: 136 | E137: =IPMT($B$2/12,D137,$B$3,-$B$1) -> $259.16 | F137: =PPMT($B$2/12,D137,$B$3,-$B$1) -> $284.11 | G137: =$B$1-SUM($F$2:F137) -> $47,560.17
D138: 137 | E138: =IPMT($B$2/12,D138,$B$3,-$B$1) -> $257.62 | F138: =PPMT($B$2/12,D138,$B$3,-$B$1) -> $285.64 | G138: =$B$1-SUM($F$2:F138) -> $47,274.53
D139: 138 | E139: =IPMT($B$2/12,D139,$B$3,-$B$1) -> $256.07 | F139: =PPMT($B$2/12,D139,$B$3,-$B$1) -> $287.19 | G139: =$B$1-SUM($F$2:F139) -> $46,987.34
D140: 139 | E140: =IPMT($B$2/12,D140,$B$3,-$B$1) -> $254.51 | F140: =PPMT($B$2/12,D140,$B$3,-$B$1) -> $288.75 | G140: =$B$1-SUM($F$2:F140) -> $46,698.59
D141: 140 | E141: =IPMT($B$2/12,D141,$B$3,-$B$1) -> $252.95 | F141: =PPMT($B$2/12,D141,$B$3,-$B$1) -> $290.31 | G141: =$B$1-SUM($F$2:F141) -> $46,408.28
D142: 141 | E142: =IPMT($B$2/12,D142,$B$3,-$B$1) -> $251.38 | F142: =PPMT($B$2/12,D142,$B$3,-$B$1) -> $291.88 | G142: =$B$1-SUM($F$2:F142) -> $46,116.39
D143: 142 | E143: =IPMT($B$2/12,D143,$B$3,-$B$1) -> $249.80 | F143: =PPMT($B$2/12,D143,$B$3,-$B$1) -> $293.46 | G143: =$B$1-SUM($F$2:F143) -> $45,822.93
D144: 143 | E144: =IPMT($B$2/12,D144,$B$3,-$B$1) -> $248.21 | F144: =PPMT($B$2/12,D144,$B$3,-$B$1) -> $295.05 | G144: =$B$1-SUM($F$2:F144) -> $45,527.88
D145: 144 | E145: =IPMT($B$2/12,D145,$B$3,-$B$1) -> $246.61 | F145: =PPMT($B$2/12,D145,$B$3,-$B$1) -> $296.65 | G145: =$B$1-SUM($F$2:F145) -> $45,231.22
D146: 145 | E146: =IPMT($B$2/12,D146,$B$3,-$B$1) -> $245.00 | F146: =PPMT($B$2/12,D146,$B$3,-$B$1) -> $298.26 | G146: =$B$1-SUM($F$2:F146) -> $44,932.96
D147: 146 | E147: =IPMT($B$2/12,D147,$B$3,-$B$1) -> $243.39 | F147: =PPMT($B$2/12,D147,$B$3,-$B$1) -> $299.88 | G147: =$B$1-SUM($F$2:F147) -> $44,633.09
D148: 147 | E148: =IPMT($B$2/12,D148,$B$3,-$B$1) -> $241.76 | F148: =PPMT($B$2/12,D148,$B$3,-$B$1) -> $301.50 | G148: =$B$1-SUM($F$2:F148) -> $44,331.59
D149: 148 | E149: =IPMT($B$2/12,D149,$B$3,-$B$1) -> $240.13 | F149: =PPMT($B$2/12,D149,$B$3,-$B$1) -> $303.13 | G149: =$B$1-SUM($F$2:F149) -> $44,028.46
D150: 149 | E150: =IPMT($B$2/12,D150,$B$3,-$B$1) -> $238.49 | F150: =PPMT($B$2/12,D150,$B$3,-$B$1) -> $304.77 | G150: =$B$1-SUM($F$2:F150) -> $43,723.68
D151: 150 | E151: =IPMT($B$2/12,D151,$B$3,-$B$1) -> $236.84 | F151: =PPMT($B$2/12,D151,$B$3,-$B$1) -> $306.43 | G151: =$B$1-SUM($F$2:F151) -> $43,417.26
D152: 151 | E152: =IPMT($B$2/12,D152,$B$3,-$B$1) -> $235.18 | F152: =PPMT($B$2/12,D152,$B$3,-$B$1) -> $308.09 | G152: =$B$1-SUM($F$2:F152) -> $43,109.17
D153: 152 | E153: =IPMT($B$2/12,D153,$B$3,-$B$1) -> $233.51 | F153: =PPMT($B$2/12,D153,$B$3,-$B$1) -> $309.75 | G153: =$B$1-SUM($F$2:F153) -> $42,799.42
D154: 153 | E154: =IPMT($B$2/12,D154,$B$3,-$B$1) -> $231.83 | F154: =PPMT($B$2/12,D154,$B$3,-$B$1) -> $311.43 | G154: =$B$1-SUM($F$2:F154) -> $42,487.98
D155: 154 | E155: =IPMT($B$2/12,D155,$B$3,-$B$1) -> $230.14 | F155: =PPMT($B$2/12,D155,$B$3,-$B$1) -> $313.12 | G155: =$B$1-SUM($F$2:F155) -> $42,174.86
D156: 155 | E156: =IPMT($B$2/12,D156,$B$3,-$B$1) -> $228.45 | F156: =PPMT($B$2/12,D156,$B$3,-$B$1) -> $314.81 | G156: =$B$1-SUM($F$2:F156) -> $41,860.05
D157: 156 | E157: =IPMT($B$2/12,D157,$B$3,-$B$1) -> $226.74 | F157: =PPMT($B$2/12,D157,$B$3,-$B$1) -> $316.52 | G157: =$B$1-SUM($F$2:F157) -> $41,543.53
D158: 157 | E158: =IPMT($B$2/12,D158,$B$3,-$B$1) -> $225.03 | F158: =PPMT($B$2/12,D158,$B$3,-$B$1) -> $318.23 | G158: =$B$1-SUM($F$2:F158) -> $41,225.30
D159: 158 | E159: =IPMT($B$2/12,D159,$B$3,-$B$1) -> $223.30 | F159: =PPMT($B$2/12,D159,$B$3,-$B$1) -> $319.96 | G159: =$B$1-SUM($F$2:F159) -> $40,905.34
D160: 159 | E160: =IPMT($B$2/12,D160,$B$3,-$B$1) -> $221.57 | F160: =PPMT($B$2/12,D160,$B$3,-$B$1) -> $321.69 | G160: =$B$1-SUM($F$2:F160) -> $40,583.65
D161: 160 | E161: =IPMT($B$2/12,D161,$B$3,-$B$1) -> $219.83 | F161: =PPMT($B$2/12,D161,$B$3,-$B$1) -> $323.43 | G161: =$B$1-SUM($F$2:F161) -> $40,260.21
D162: 161 | E162: =IPMT($B$2/12,D162,$B$3,-$B$1) -> $218.08 | F162: =PPMT($B$2/12,D162,$B$3,-$B$1) -> $325.19 | G162: =$B$1-SUM($F$2:F162) -> $39,935.03
D163: 162 | E163: =IPMT($B$2/12,D163,$B$3,-$B$1) -> $216.31 | F163: =PPMT($B$2/12,D163,$B$3,-$B$1) -> $326.95 | G163: =$B$1-SUM($F$2:F163) -> $39,608.08
D164: 163 | E164: =IPMT($B$2/12,D164,$B$3,-$B$1) -> $214.54 | F164: =PPMT($B$2/12,D164,$B$3,-$B$1) -> $328.72 | G164: =$B$1-SUM($F$2:F164) -> $39,279.36
D165: 164 | E165: =IPMT($B$2/12,D165,$B$3,-$B$1) -> $212.76 | F165: =PPMT($B$2/12,D165,$B$3,-$B$1) -> $330.50 | G165: =$B$1-SUM($F$2:F165) -> $38,948.86
D166: 165 | E166: =IPMT($B$2/12,D166,$B$3,-$B$1) -> $210.97 | F166: =PPMT($B$2/12,D166,$B$3,-$B$1) -> $332.29 | G166: =$B$1-SUM($F$2:F166) -> $38,616.57
D167: 166 | E167: =IPMT($B$2/12,D167,$B$3,-$B$1) -> $209.17 | F167: =PPMT($B$2/12,D167,$B$3,-$B$1) -> $334.09 | G167: =$B$1-SUM($F$2:F167) -> $38,282.48
D168: 167 | E168: =IPMT($B$2/12,D168,$B$3,-$B$1) -> $207.36 | F168: =PPMT($B$2/12,D168,$B$3,-$B$1) -> $335.90 | G168: =$B$1-SUM($F$2:F168) -> $37,946.58
D169: 168 | E169: =IPMT($B$2/12,D169,$B$3,-$B$1) -> $205.54 | F169: =PPMT($B$2/12,D169,$B$3,-$B$1) -> $337.72 | G169: =$B$1-SUM($F$2:F169) -> $37,608.87
D170: 169 | E170: =IPMT($B$2/12,D170,$B$3,-$B$1) -> $203.71 | F170: =PPMT($B$2/12,D170,$B$3,-$B$1) -> $339.55 | G170: =$B$1-SUM($F$2:F170) -> $37,269.32
D171: 170 | E171: =IPMT($B$2/12,D171,$B$3,-$B$1) -> $201.88 | F171: =PPMT($B$2/12,D171,$B$3,-$B$1) -> $341.39 | G171: =$B$1-SUM($F$2:F171) -> $36,927.93
D172: 171 | E172: =IPMT($B$2/12,D172,$B$3,-$B$1) -> $200.03 | F172: =PPMT($B$2/12,D172,$B$3,-$B$1) -> $343.24 | G172: =$B$1-SUM($F$2:F172) -> $36,584.70
D173: 172 | E173: =IPMT($B$2/12,D173,$B$3,-$B$1) -> $198.17 | F173: =PPMT($B$2/12,D173,$B$3,-$B$1) -> $345.10 | G173: =$B$1-SUM($F$2:F173) -> $36,239.60
D174: 173 | E174: =IPMT($B$2/12,D174,$B$3,-$B$1) -> $196.30 | F174: =PPMT($B$2/12,D174,$B$3,-$B$1) -> $346.96 | G174: =$B$1-SUM($F$2:F174) -> $35,892.64
D175: 174 | E175: =IPMT($B$2/12,D175,$B$3,-$B$1) -> $194.42 | F175: =PPMT($B$2/12,D175,$B$3,-$B$1) -> $348.84 | G175: =$B$1-SUM($F$2:F175) -> $35,543.79
D176: 175 | E176: =IPMT($B$2/12,D176,$B$3,-$B$1) -> $192.53 | F176: =PPMT($B$2/12,D176,$B$3,-$B$1) -> $350.73 | G176: =$B$1-SUM($F$2:F176) -> $35,193.06
D177: 176 | E177: =IPMT($B$2/12,D177,$B$3,-$B$1) -> $190.63 | F177: =PPMT($B$2/12,D177,$B$3,-$B$1) -> $352.63 | G177: =$B$1-SUM($F$2:F177) -> $34,840.43
D178: 177 | E178: =IPMT($B$2/12,D178,$B$3,-$B$1) -> $188.72 | F178: =PPMT($B$2/12,D178,$B$3,-$B$1) -> $354.54 | G178: =$B$1-SUM($F$2:F178) -> $34,485.88
D179: 178 | E179: =IPMT($B$2/12,D179,$B$3,-$B$1) -> $186.80 | F179: =PPMT($B$2/12,D179,$B$3,-$B$1) -> $356.46 | G179: =$B$1-SUM($F$2:F179) -> $34,129.42
D180: 179 | E180: =IPMT($B$2/12,D180,$B$3,-$B$1) -> $184.87 | F180: =PPMT($B$2/12,D180,$B$3,-$B$1) -> $358.39 | G180: =$B$1-SUM($F$2:F180) -> $33,771.03
D181: 180 | E181: =IPMT($B$2/12,D181,$B$3,-$B$1) -> $182.93 | F181: =PPMT($B$2/12,D181,$B$3,-$B$1) -> $360.34 | G181: =$B$1-SUM($F$2:F181) -> $33,410.69
D182: 181 | E182: =IPMT($B$2/12,D182,$B$3,-$B$1) -> $180.97 | F182: =PPMT($B$2/12,D182,$B$3,-$B$1) -> $362.29 | G182: =$B$1-SUM($F$2:F182) -> $33,048.40
D183: 182 | E183: =IPMT($B$2/12,D183,$B$3,-$B$1) -> $179.01 | F183: =PPMT($B$2/12,D183,$B$3,-$B$1) -> $364.25 | G183: =$B$1-SUM($F$2:F183) -> $32,684.15
D184: 183 | E184: =IPMT($B$2/12,D184,$B$3,-$B$1) -> $177.04 | F184: =PPMT($B$2/12,D184,$B$3,-$B$1) -> $366.22 | G184: =$B$1-SUM($F$2:F184) -> $32,317.93
D185: 184 | E185: =IPMT($B$2/12,D185,$B$3,-$B$1) -> $175.06 | F185: =PPMT($B$2/12,D185,$B$3,-$B$1) -> $368.21 | G185: =$B$1-SUM($F$2:F185) -> $31,949.72
D186: 185 | E186: =IPMT($B$2/12,D186,$B$3,-$B$1) -> $173.06 | F186: =PPMT($B$2/12,D186,$B$3,-$B$1) -> $370.20 | G186: =$B$1-SUM($F$2:F186) -> $31,579.52
D187: 186 | E187: =IPMT($B$2/12,D187,$B$3,-$B$1) -> $171.06 | F187: =PPMT($B$2/12,D187,$B$3,-$B$1) -> $372.21 | G187: =$B$1-SUM($F$2:F187) -> $31,207.32
D188: 187 | E188: =IPMT($B$2/12,D188,$B$3,-$B$1) -> $169.04 | F188: =PPMT($B$2/12,D188,$B$3,-$B$1) -> $374.22 | G188: =$B$1-SUM($F$2:F188) -> $30,833.09
D189: 188 | E189: =IPMT($B$2/12,D189,$B$3,-$B$1) -> $167.01 | F189: =PPMT($B$2/12,D189,$B$3,-$B$1) -> $376.25 | G189: =$B$1-SUM($F$2:F189) -> $30,456.84
D190: 189 | E190: =IPMT($B$2/12,D190,$B$3,-$B$1) -> $164.97 | F190: =PPMT($B$2/12,D190,$B$3,-$B$1) -> $378.29 | G190: =$B$1-SUM($F$2:F190) -> $30,078.56
D191: 190 | E191: =IPMT($B$2/12,D191,$B$3,-$B$1) -> $162.93 | F191: =PPMT($B$2/12,D191,$B$3,-$B$1) -> $380.34 | G191: =$B$1-SUM($F$2:F191) -> $29,698.22
D192: 191 | E192: =IPMT($B$2/12,D192,$B$3,-$B$1) -> $160.87 | F192: =PPMT($B$2/12,D192,$B$3,-$B$1) -> $382.40 | G192: =$B$1-SUM($F$2:F192) -> $29,315.82
D193: 192 | E193: =IPMT($B$2/12,D193,$B$3,-$B$1) -> $158.79 | F193: =PPMT($B$2/12,D193,$B$3,-$B$1) -> $384.47 | G193: =$B$1-SUM($F$2:F193) -> $28,931.35
D194: 193 | E194: =IPMT($B$2/12,D194,$B$3,-$B$1) -> $156.71 | F194: =PPMT($B$2/12,D194,$B$3,-$B$1) -> $386.55 | G194: =$B$1-SUM($F$2:F194) -> $28,544.80
D195: 194 | E195: =IPMT($B$2/12,D195,$B$3,-$B$1) -> $154.62 | F195: =PPMT($B$2/12,D195,$B$3,-$B$1) -> $388.64 | G195: =$B$1-SUM($F$2:F195) -> $28,156.16
D196: 195 | E196: =IPMT($B$2/12,D196,$B$3,-$B$1) -> $152.51 | F196: =PPMT($B$2/12,D196,$B$3,-$B$1) -> $390.75 | G196: =$B$1-SUM($F$2:F196) -> $27,765.41
D197: 196 | E197: =IPMT($B$2/12,D197,$B$3,-$B$1) -> $150.40 | F197: =PPMT($B$2/12,D197,$B$3,-$B$1) -> $392.87 | G197: =$B$1-SUM($F$2:F197) -> $27,372.54
D198: 197 | E198: =IPMT($B$2/12,D198,$B$3,-$B$1) -> $148.27 | F198: =PPMT($B$2/12,D198,$B$3,-$B$1) -> $394.99 | G198: =$B$1-SUM($F$2:F198) -> $26,977.55
D199: 198 | E199: =IPMT($B$2/12,D199,$B$3,-$B$1) -> $146.13 | F199: =PPMT($B$2/12,D199,$B$3,-$B$1) -> $397.13 | G199: =$B$1-SUM($F$2:F199) -> $26,580.42
D200: 199 | E200: =IPMT($B$2/12,D200,$B$3,-$B$1) -> $143.98 | F200: =PPMT($B$2/12,D200,$B$3,-$B$1) -> $399.28 | G200: =$B$1-SUM($F$2:F200) -> $26,181.13
... 56 more rows
